bitfinex/quotes_ETHUSD_20240703
["timestamp","ask_amount","ask_price","bid_price","bid_amount"]
[1720010608311,0.52630178,3292.4,3291.4,0.06075363]
[1720010608612,0.52630178,3292.4,3291.5,0.30990536]
[1720010608816,0.52630178,3292.4,3291.6,0.06075363]
[1720010609980,0.52630178,3292.4,3291.3,0.06075363]
[1720010610692,0.06342773,3292.5,3291.3,0.06075363]
[1720010610890,0.52630736,3292.4,3291.3,0.06075363]
[1720010611087,0.58973509,3292.3,3291.4,0.30991536]
[1720010611291,0.58973509,3292.3,3290.9,3.21]
[1720010611292,6.21970736,3292.2,3290.9,3.21]
[1720010611587,0.58973509,3292.1,3290.8,4.022495]
[1720010611792,0.06342773,3292.1,3291.0,3.03854]
[1720010611988,3.1344,3292.2,3291.2,3.03839]
[1720010612191,3.1344,3292.2,3291.3,0.06075428]
[1720010614614,0.06342773,3292.6,3291.5,3.03809]
[1720010614791,0.52628148,3292.5,3291.6,0.06074833]
[1720010614994,0.52628148,3292.4,3291.7,0.30988383]
[1720010615310,0.52628148,3292.3,3291.8,0.06074833]
[1720010615497,0.52628148,3292.2,3291.8,0.06074833]
[1720010615680,0.06342773,3292.6,3291.8,0.06074833]
[1720010616029,0.52628267,3292.5,3291.8,0.06074833]
[1720010616202,0.52628267,3292.4,3291.8,0.06074833]
[1720010616410,0.52628267,3292.3,3291.8,0.06074833]
[1720010616576,0.06342773,3292.6,3292.0,3.03766]
[1720010616784,3.97282773,3293.4,3292.2,9.28482]
[1720010617007,3.97282773,3293.4,3292.3,0.06073469]
[1720010617008,0.52615208,3293.3,3292.3,0.06073469]
[1720010617225,0.06342773,3293.4,3292.3,0.06073469]
[1720010617412,0.52613184,3293.3,3292.3,3.09811469]
[1720010617615,0.06342773,3293.4,3292.4,0.93455147]
[1720010617814,0.52613133,3293.3,3292.5,0.06073471]
[1720010618085,0.06342773,3293.4,3292.4,0.93455147]
[1720010618086,0.52614198,3293.2,3292.4,0.93455147]
[1720010618289,0.06342773,3293.4,3292.5,0.06073471]
[1720010618523,0.52614177,3293.3,3292.5,0.06073471]
[1720010618712,0.06342773,3293.4,3292.5,0.06073471]
[1720010624779,0.06342773,3293.8,3292.5,3.09787471]
[1720010624898,0.06342773,3293.8,3292.6,3.76134262]
[1720010625107,0.06342773,3293.8,3292.7,0.06073027]
[1720010625304,0.06342773,3293.8,3292.8,0.0607284]
[1720010626443,0.02691817,3293.7,3292.8,0.0607284]
[1720010626654,0.0903459,3293.7,3292.8,0.7880955]
[1720010627411,0.06342773,3293.7,3292.8,0.7880955]
[1720010627745,3.2857,3294.3,3292.8,3.9373671]
[1720010627953,0.02756158,3293.6,3293.1,3.03665]
[1720010628254,0.06342773,3294.2,3293.2,0.36438697]
[1720010628572,0.06342773,3294.2,3293.3,0.06072196]
[1720010628711,0.06342773,3294.2,3292.8,3.9373671]
[1720010628712,0.02755749,3294.1,3292.8,3.9373671]
[1720010628910,0.06342773,3294.0,3292.9,0.69743371]
[1720010629455,0.02755749,3293.9,3292.9,0.69743371]
[1720010629656,0.02755749,3293.9,3292.8,0.7273671]
[1720010630009,5.8447,3294.3,3292.8,0.7273671]
[1720010630010,3.0,3294.2,3292.8,0.7273671]
[1720010630219,0.02770084,3293.8,3292.8,0.7273671]
[1720010630450,3.0,3294.2,3292.6,3.4516]
[1720010630652,0.02770084,3293.7,3292.6,3.4516]
[1720010630825,3.0,3294.2,3292.6,6.4887]
[1720010631161,0.02770084,3294.1,3292.7,0.06073027]
[1720010631505,3.0,3294.2,3292.7,0.06073027]
[1720010631735,0.02765988,3294.1,3292.8,0.65494303]
[1720010631945,0.09108761,3294.1,3292.9,0.06073022]
[1720010632732,0.09108761,3294.1,3292.8,3.69186303]
[1720010632935,0.09108761,3294.1,3292.8,0.65494303]
[1720010634233,0.09108761,3294.1,3292.9,0.06072802]
[1720010634429,0.09108761,3294.1,3292.8,0.65494303]
[1720010634755,0.09108761,3294.1,3292.9,0.3691963]
[1720010635708,0.09108761,3294.1,3293.0,0.06072802]
[1720010636120,0.09108761,3294.1,3292.9,0.3691963]
[1720010637128,0.09108761,3294.1,3293.0,0.060728]
[1720010638286,0.02765988,3294.1,3293.0,3.097388]
[1720010638566,0.02765988,3294.1,3293.1,0.66765843]
[1720010638786,0.02765988,3294.1,3293.2,0.06072116]
[1720010641111,0.02765988,3294.1,3293.2,0.06072116]
[1720010641698,0.06342773,3294.0,3293.1,0.72837963]
[1720010642003,0.02787288,3293.9,3292.9,0.3691963]
[1720010642325,0.02787288,3293.9,3292.8,0.65494303]
[1720010642326,0.06342773,3293.8,3292.8,0.65494303]
[1720010642639,3.86802167,3293.7,3292.8,0.65494303]
[1720010642929,0.5540008,3293.6,3292.1,3.2583]
[1720010643068,0.58957203,3293.5,3292.1,6.29584]
[1720010643269,0.55388347,3293.4,3292.2,1.254345]
[1720010643471,0.06342773,3293.3,3292.2,1.254345]
[1720010643987,0.02772134,3293.2,3292.2,1.254345]
[1720010644199,0.09114907,3293.2,3292.2,1.254345]
[1720010644369,0.06342773,3293.6,3292.2,1.254345]
[1720010644571,0.02772134,3293.1,3292.3,0.7722645]
[1720010644781,0.06342773,3293.4,3292.3,0.7722645]
[1720010644994,0.52616294,3293.3,3292.3,3.8096445]
[1720010645229,3.21112773,3294.1,3292.5,6.24719]
[1720010645402,0.52610058,3294.0,3292.6,0.06072784]
[1720010645733,0.58952831,3293.9,3292.7,0.63079178]
[1720010645919,0.52610058,3293.8,3292.8,0.06072784]
[1720010646099,0.52610058,3293.7,3292.8,0.06072784]
[1720010646304,0.55370722,3293.6,3292.8,0.06072784]
[1720010646503,0.52610058,3293.5,3292.7,0.63079178]
[1720010646832,0.52610058,3293.4,3292.8,0.06072785]
[1720010647119,0.02760664,3293.4,3292.8,0.06072785]
[1720010647328,0.06342773,3293.7,3292.8,0.06072785]
[1720010647485,0.02760664,3293.3,3292.8,0.06072785]
[1720010647687,0.06342773,3293.9,3292.8,0.06072785]
[1720010647899,0.55371142,3293.8,3292.8,0.06072785]
[1720010648230,0.5261026,3293.7,3292.8,0.06072785]
[1720010648401,0.5261026,3293.6,3292.8,0.06072785]
[1720010648730,0.5261026,3293.5,3292.8,0.06072785]
[1720010649033,0.5261026,3293.4,3292.8,3.27072785]
[1720010649230,0.02760664,3293.5,3292.9,0.39015196]
[1720010649390,3.06342773,3294.0,3293.0,0.06072365]
[1720010649589,0.02760664,3293.4,3293.0,0.06072365]
[1720010649797,3.06342773,3294.0,3293.0,0.06072365]
[1720010650020,0.02751244,3293.3,3293.0,0.74123121]
[1720010650217,3.06342773,3294.0,3293.0,0.74123121]
[1720010650418,0.02751244,3293.2,3293.0,0.74123121]
[1720010650624,3.1477,3294.1,3293.0,0.74123121]
[1720010650834,0.5260492,3294.0,3293.1,0.43413832]
[1720010651139,0.5260492,3294.0,3293.2,0.06072128]
[1720010651140,0.5260492,3293.9,3293.2,0.06072128]
[1720010651436,0.52605339,3293.8,3293.2,0.06072128]
[1720010651728,0.55358536,3293.7,3293.2,0.06072128]
[1720010651889,0.52607292,3293.6,3293.2,0.06072128]
[1720010652090,3.1477,3294.1,3293.2,0.06072128]
[1720010652290,0.61700472,3294.0,3293.1,0.43413832]
[1720010652515,0.52606455,3293.9,3293.1,0.43413832]
[1720010652926,0.02751244,3293.8,3293.1,0.43413832]
[1720010653251,0.52606455,3293.7,3293.2,0.06072129]
[1720010653555,0.06342773,3294.0,3293.2,0.06072129]
[1720010653863,0.02751244,3293.6,3293.2,0.06072129]
[1720010654028,0.06342773,3294.0,3293.1,0.43413832]
[1720010654216,0.02751244,3293.5,3293.2,0.06072128]
[1720010654526,0.02751244,3293.4,3293.2,0.06072128]
[1720010654911,0.06342773,3294.0,3293.2,0.06072128]
[1720010655110,0.5535583,3293.9,3293.2,0.06072128]
[1720010655335,0.52604586,3293.8,3293.2,0.06072128]
[1720010655526,0.52604586,3293.8,3293.1,0.43413832]
[1720010655957,0.5535583,3293.7,3293.1,0.43413832]
[1720010656155,0.52604586,3293.6,3293.2,0.06072129]
[1720010656661,0.02751244,3293.5,3293.2,0.06072129]
[1720010657028,3.1477,3294.1,3293.2,0.06072129]
[1720010657229,0.52605285,3294.0,3293.2,0.06072129]
[1720010657556,0.52604881,3293.9,3293.2,0.06072129]
[1720010657846,0.52604881,3293.8,3293.2,0.06072129]
[1720010658055,0.52604881,3293.9,3293.2,0.06072129]
[1720010658257,0.02751244,3293.7,3293.4,8.07631]
[1720010662139,0.02784821,3294.6,3294.0,0.06070924]
[1720010662342,0.06342773,3294.9,3294.0,0.06070924]
[1720010662555,0.02784821,3294.5,3293.6,0.06070925]
[1720010662758,3.3905,3294.8,3293.7,0.44572924]
[1720010662962,0.02784821,3294.4,3293.7,0.44572924]
[1720010663160,3.3905,3294.8,3293.7,0.44572924]
[1720010663360,0.02784821,3294.3,3293.7,0.44572924]
[1720010663594,3.3905,3294.8,3293.7,0.44572924]
[1720010663899,0.02784821,3294.2,3293.7,0.44572924]
[1720010664055,0.06342773,3294.9,3293.7,0.44572924]
[1720010664498,0.55378701,3294.8,3293.7,0.44572924]
[1720010664669,0.5259388,3294.7,3293.7,0.44572924]
[1720010664873,0.5259388,3294.6,3293.8,6.5285093]
[1720010665078,3.0,3295.1,3293.9,1.00102985]
[1720010665266,0.55375554,3295.0,3293.9,1.00102985]
[1720010665591,0.58933506,3294.9,3293.9,1.00102985]
[1720010665791,0.52590733,3294.8,3293.8,3.2578]
[1720010666119,0.09127594,3294.7,3293.8,3.2578]
[1720010666482,0.02784821,3294.7,3293.8,3.2578]
[1720010666825,0.06342773,3295.0,3293.8,3.2578]
[1720010666970,0.02784821,3294.6,3293.8,3.2578]
[1720010667321,0.02784821,3294.5,3293.9,0.37035292]
[1720010667462,0.02784821,3294.5,3293.8,3.2578]
[1720010667663,0.06342773,3295.0,3293.8,3.2578]
[1720010667664,0.02784821,3294.4,3293.8,3.2578]
[1720010667910,0.06342773,3295.0,3293.8,3.2578]
[1720010668100,0.52597393,3294.9,3293.8,3.2578]
[1720010668305,0.58940166,3294.8,3293.9,0.37035292]
[1720010668519,0.58940166,3294.7,3293.9,0.37035292]
[1720010668686,0.55382214,3294.6,3293.9,0.37035292]
[1720010668875,0.06342773,3294.5,3293.9,0.37035292]
[1720010669072,0.06342773,3295.0,3293.9,0.37035292]
[1720010669408,0.55382054,3294.9,3293.8,3.2578]
[1720010669618,0.58940006,3294.8,3293.8,3.2578]
[1720010669902,0.61727693,3294.7,3293.8,3.2578]
[1720010670102,0.0913046,3294.7,3293.8,3.2578]
[1720010670311,0.5259799,3294.6,3293.8,3.2578]
[1720010670619,0.58940763,3294.5,3293.8,3.2578]
[1720010670772,0.06342773,3294.4,3293.8,3.2578]
[1720010671400,0.02787687,3294.3,3293.8,3.58358]
[1720010671601,2.559,3294.2,3293.2,3.4402]
[1720010671876,2.559,3293.8,3293.2,3.4402]
[1720010672109,0.0917592,3293.7,3293.2,3.4402]
[1720010672321,0.0917592,3293.7,3293.2,0.34402]
[1720010672548,0.06342773,3293.7,3292.8,3.4402]
[1720010672978,2.559,3293.8,3292.9,0.06072604]
[1720010673572,0.58951675,3293.7,3292.8,3.4402]
[1720010673911,0.06342773,3293.7,3292.8,3.4402]
[1720010674414,0.52609876,3293.6,3292.9,0.34402]
[1720010674613,0.52609876,3293.5,3292.9,0.34402]
[1720010674803,0.52609876,3293.7,3292.9,0.34402]
[1720010676404,2.559,3293.8,3292.9,0.34402]
[1720010676405,0.52610173,3293.6,3292.9,0.34402]
[1720010676586,2.559,3293.8,3293.0,0.378422]
[1720010677090,0.52608498,3293.7,3293.0,0.378422]
[1720010677292,2.559,3293.8,3293.1,0.06072808]
[1720010677532,3.293,3294.4,3293.1,0.06072808]
[1720010677533,0.55413341,3293.7,3293.1,0.06072808]
[1720010677848,2.559,3294.2,3293.1,0.06072808]
[1720010678049,0.52606171,3294.1,3293.1,0.06072808]
[1720010678348,0.52606171,3294.0,3293.1,0.06072808]
[1720010678497,0.52606171,3293.9,3293.2,0.36491501]
[1720010678698,0.55417616,3293.8,3293.3,0.06071922]
[1720010678899,0.02811445,3293.8,3293.3,0.06071922]
[1720010679143,2.559,3294.2,3293.3,0.06071922]
[1720010679441,0.02811445,3294.1,3293.3,0.06071922]
[1720010679643,0.55415747,3294.1,3293.3,0.06071922]
[1720010679794,0.02811445,3294.1,3293.3,0.06071922]
[1720010679997,0.52604277,3294.0,3293.3,0.06071922]
[1720010680637,0.02811445,3293.9,3293.3,0.06071922]
[1720010682401,0.02811445,3293.9,3293.2,0.36491501]
[1720010682617,2.559,3293.8,3292.8,3.4402]
[1720010682836,2.559,3293.8,3292.9,0.34402]
[1720010683214,0.02811445,3293.7,3292.9,0.34402]
[1720010689839,0.52604277,3294.0,3292.9,0.34402]
[1720010690061,0.02779094,3293.6,3292.9,0.34402]
[1720010690260,0.52604277,3294.0,3293.0,0.378422]
[1720010690463,0.02779094,3293.5,3293.0,0.378422]
[1720010690776,0.02781551,3293.4,3293.0,0.378422]
[1720010690934,2.559,3293.1,3292.1,3.3132]
[1720010691136,2.559,3292.7,3292.1,3.3132]
[1720010691629,0.02763527,3292.6,3292.2,0.33132]
[1720010691854,0.02763527,3292.6,3292.4,6.6654]
[1720010692073,2.559,3293.6,3292.4,3.4554]
[1720010692379,3.02763527,3293.5,3292.4,3.4554]
[1720010692605,0.52618852,3293.4,3292.4,3.4554]
[1720010692881,2.559,3293.2,3292.4,3.834072]
[1720010693048,0.52618852,3293.1,3292.4,3.834072]
[1720010693247,0.55381559,3293.1,3292.4,3.834072]
[1720010693448,0.52618852,3293.0,3292.4,3.834072]
[1720010693669,0.52618852,3293.0,3292.5,0.36869542]
[1720010693873,0.0275943,3292.9,3292.4,3.4554]
[1720010694085,3.08518852,3292.8,3291.9,3.4411]
[1720010694386,0.55341825,3292.7,3291.9,3.4411]
[1720010694542,0.52618852,3292.6,3291.9,3.78521]
[1720010694897,0.02709451,3292.5,3292.1,3.21]
[1720010695181,5.559,3293.7,3292.1,3.21]
[1720010695182,8.559,3293.7,3292.1,3.21]
[1720010695389,0.02709451,3292.4,3292.2,6.604]
[1720010695569,3.0,3293.7,3292.3,1.02488787]
[1720010695751,0.52616179,3293.6,3292.3,0.964154]
[1720010695948,5.8105,3293.9,3292.3,0.964154]
[1720010695949,0.52616179,3293.5,3292.3,0.964154]
[1720010696149,2.559,3293.5,3292.4,0.7568154]
[1720010696352,3.52616179,3293.4,3292.4,0.7568154]
[1720010696549,0.52616179,3293.3,3292.4,0.7568154]
[1720010696775,2.559,3293.1,3292.2,6.604]
[1720010697090,3.52616179,3293.0,3292.2,6.604]
[1720010697302,0.52616179,3292.9,3292.2,6.604]
[1720010697663,0.52616179,3292.9,3291.8,0.30560176]
[1720010697664,0.52616179,3292.9,3291.8,3.2703]
[1720010697993,2.559,3292.3,3291.1,3.2703]
[1720010698154,2.559,3292.3,3291.2,0.32703]
[1720010698503,2.559,3291.9,3291.2,0.32703]
[1720010698652,0.52637634,3291.8,3291.1,3.2703]
[1720010699057,0.52637634,3291.8,3291.2,3.21]
[1720010699253,2.559,3292.7,3291.2,3.21]
[1720010699494,3.52637682,3292.6,3291.2,3.21]
[1720010699658,3.52637682,3292.6,3291.1,3.2703]
[1720010699659,0.52637682,3292.5,3291.3,3.85803]
[1720010699852,3.0,3292.6,3291.4,0.06074983]
[1720010699853,0.52637682,3292.4,3291.4,0.06074983]
[1720010700092,0.52637682,3292.3,3291.4,0.06074983]
[1720010700293,0.52637682,3292.2,3291.3,0.64803]
[1720010700495,0.52637682,3292.1,3291.1,3.2703]
[1720010701017,0.52640538,3292.0,3291.1,3.2703]
[1720010701178,0.52640538,3291.9,3291.1,3.2703]
[1720010701385,3.0,3292.2,3291.1,3.59733]
[1720010701386,0.52640538,3292.1,3291.1,3.59733]
[1720010702015,0.52640538,3292.1,3291.1,0.32703]
[1720010702188,0.52640538,3292.1,3290.7,3.1552]
[1720010703298,0.52640538,3292.1,3290.8,0.06076279]
[1720010703627,3.0,3292.2,3290.8,0.06076279]
[1720010703807,0.52640411,3292.1,3290.8,0.06076279]
[1720010704015,0.02674607,3292.1,3290.8,0.06076279]
[1720010704987,0.02674607,3292.1,3290.9,0.64259628]
[1720010705200,0.02674607,3292.1,3291.1,6.4342]
[1720010705400,3.0,3292.7,3291.2,0.06075355]
[1720010705703,0.52635373,3292.6,3291.3,0.06075357]
[1720010706047,0.52635373,3292.5,3291.3,0.71024893]
[1720010706231,3.0,3292.7,3291.3,0.71024893]
[1720010706427,0.5263412,3292.6,3291.3,0.71024893]
[1720010706655,3.0,3292.7,3291.4,0.06075211]
[1720010706932,0.52632138,3292.6,3291.6,6.4348]
[1720010707135,2.559,3292.9,3291.6,3.2248]
[1720010707336,3.52631446,3292.8,3291.6,3.2248]
[1720010707634,0.52631446,3292.7,3291.6,3.2248]
[1720010707832,0.52631446,3292.7,3291.7,0.37998248]
[1720010709037,0.52631446,3292.7,3291.8,0.06074978]
[1720010709536,3.0,3293.2,3291.8,0.06074978]
[1720010709755,0.52627161,3293.1,3291.8,0.06074978]
[1720010710053,0.52628513,3293.0,3291.8,0.06074978]
[1720010710209,0.52628513,3292.9,3291.8,0.06074978]
[1720010710549,0.52628513,3292.8,3291.8,0.06074978]
[1720010710857,3.0,3292.9,3291.8,0.06074978]
[1720010711057,0.52628073,3292.8,3291.8,0.06074978]
[1720010711224,3.0,3292.9,3291.8,0.06074978]
[1720010711553,0.52627841,3292.8,3291.8,0.06074978]
[1720010711751,3.0,3292.9,3291.8,0.06074978]
[1720010713724,3.0,3292.9,3292.0,0.06074244]
[1720010715541,0.52624708,3292.8,3292.0,0.06074244]
[1720010715746,2.559,3293.1,3292.0,0.06074244]
[1720010715944,3.52623266,3293.0,3292.0,0.06074244]
[1720010716435,0.52623266,3292.9,3292.0,0.06074244]
[1720010716743,3.0,3293.0,3292.0,0.06074244]
[1720010717066,0.52622708,3292.9,3292.2,3.2539]
[1720010717267,3.0,3293.0,3292.3,0.06073991]
[1720010717571,0.52621961,3292.9,3292.3,0.06073991]
[1720010717867,3.0,3293.0,3292.3,0.06073991]
[1720010718068,0.52621685,3292.9,3292.3,0.06073991]
[1720010718253,3.0,3293.0,3292.4,0.33146399]
[1720010718566,0.52622018,3292.9,3292.1,0.39396087]
[1720010718771,3.0,3293.0,3292.1,0.39396087]
[1720010718956,3.0,3293.0,3291.9,0.66886623]
[1720010718957,2.559,3292.7,3291.9,0.66886623]
[1720010719171,2.559,3292.7,3291.8,3.267]
[1720010719466,3.5262992,3292.6,3291.4,3.267]
[1720010719669,0.5262992,3292.5,3291.4,3.267]
[1720010720795,0.5262992,3292.5,3291.4,6.477]
[1720010722504,3.0,3292.6,3291.4,6.477]
[1720010722505,0.52630361,3292.4,3291.4,6.477]
[1720010722652,1.05261055,3292.4,3291.5,4.16153]
[1720010722855,0.52630361,3292.4,3291.5,4.16153]
[1720010723298,0.52628715,3292.3,3291.5,4.16153]
[1720010723461,0.52630361,3292.4,3291.6,0.742853]
[1720010723667,0.52629781,3292.3,3291.6,0.742853]
[1720010723880,0.52629781,3292.2,3291.6,0.742853]
[1720010724195,0.52629781,3292.3,3291.6,0.742853]
[1720010724399,0.52629781,3292.2,3291.4,3.267]
[1720010724584,0.52629781,3292.3,3291.4,3.267]
[1720010724760,0.52629781,3292.2,3291.5,0.3267]
[1720010724959,6.27589781,3292.3,3290.8,3.3752]
[1720010725196,3.52629781,3292.2,3290.9,3.21]
[1720010725383,0.52629781,3292.1,3290.9,3.21]
[1720010725597,3.0,3292.2,3290.9,3.21]
[1720010725903,0.52638267,3292.1,3291.0,0.06075894]
[1720010726065,0.52638267,3292.0,3291.1,0.32707589]
[1720010726409,0.52634635,3291.9,3291.2,0.06075894]
[1720010726697,3.0,3292.2,3291.2,0.06075894]
[1720010726878,0.52634043,3292.1,3291.1,3.53707589]
[1720010727080,0.52634043,3292.0,3291.1,3.53707589]
[1720010727270,3.0,3292.2,3291.1,3.53707589]
[1720010727271,0.52634043,3292.1,3291.2,0.35370759]
[1720010727597,0.52634043,3292.0,3291.2,0.35370759]
[1720010727812,0.52634043,3292.1,3291.2,0.35370759]
[1720010728014,0.52634043,3292.0,3290.9,3.21]
[1720010728180,0.52634043,3292.1,3290.9,3.21]
[1720010728816,3.0,3292.2,3290.9,3.21]
[1720010729011,3.0,3292.2,3290.8,3.3752]
[1720010729012,0.52637583,3292.0,3290.8,3.3752]
[1720010729202,3.0,3292.2,3290.8,4.03372]
[1720010729401,0.526399,3292.1,3290.8,4.03372]
[1720010729620,0.526399,3292.0,3290.8,4.03372]
[1720010729919,3.0,3292.2,3290.8,4.03372]
[1720010729920,0.526399,3292.1,3290.8,4.03372]
[1720010730084,0.526399,3292.0,3290.8,4.03372]
[1720010730279,0.526399,3291.9,3290.9,0.403372]
[1720010730583,0.526399,3291.8,3291.0,0.06076198]
[1720010730787,0.52630361,3292.4,3290.9,0.403372]
[1720010730788,2.559,3292.0,3290.9,0.403372]
[1720010730990,0.52642419,3291.9,3290.9,0.403372]
[1720010731385,0.52642419,3291.9,3291.0,0.06076201]
[1720010731611,0.05644997,3291.8,3291.2,6.5039]
[1720010731797,0.05644997,3291.8,3291.3,3.82075027]
[1720010732002,0.52630361,3292.4,3291.3,3.82075027]
[1720010732187,0.05638026,3291.7,3291.3,3.82075027]
[1720010732722,0.52630361,3292.4,3291.4,6.5039]
[1720010732901,0.52631765,3292.3,3291.5,0.77221284]
[1720010733102,0.52631765,3292.2,3291.5,0.77221284]
[1720010733298,0.52631765,3292.1,3291.5,0.77221284]
[1720010733507,0.52630361,3292.4,3291.5,0.77221284]
[1720010733707,0.52631778,3292.3,3291.5,0.77221284]
[1720010733924,0.52631778,3292.2,3291.6,0.72761128]
[1720010734198,0.52630361,3292.4,3291.8,6.5638]
[1720010734637,0.05659756,3292.3,3291.8,6.5638]
[1720010734987,0.52630361,3292.4,3291.9,0.06074106]
[1720010736434,0.52630361,3292.4,3292.0,3.76]
[1720010736727,3.0,3293.4,3292.1,0.06073761]
[1720010736927,3.0,3293.4,3292.2,0.38207376]
[1720010736928,0.7081412,3293.3,3292.2,0.38207376]
[1720010737131,0.7081412,3293.2,3292.3,0.06073613]
[1720010737426,0.7081412,3293.1,3292.3,0.06073613]
[1720010737742,0.7081412,3293.1,3292.2,0.38207376]
[1720010737743,0.7081412,3293.0,3292.2,0.38207376]
[1720010737943,0.7081412,3292.9,3291.9,3.21]
[1720010738254,0.70818433,3292.8,3291.9,3.21]
[1720010738564,0.52622879,3292.7,3292.0,0.06073918]
[1720010738713,0.52622879,3292.8,3292.1,0.32707392]
[1720010738904,0.52622879,3293.3,3292.2,0.06073918]
[1720010739104,3.0,3293.4,3292.2,0.06073918]
[1720010739105,0.05678611,3292.7,3292.2,0.06073918]
[1720010739346,0.52622879,3292.6,3292.2,0.06073918]
[1720010739534,0.52622879,3293.3,3292.2,0.06073918]
[1720010739731,0.18200141,3293.2,3292.2,0.06073918]
[1720010739932,0.52622879,3293.1,3292.2,0.06073918]
[1720010740243,0.18200141,3293.0,3292.2,0.06073918]
[1720010740451,0.52622879,3292.9,3292.2,0.06073918]
[1720010740620,0.18200141,3292.8,3292.2,0.06073918]
[1720010740947,0.52622879,3292.7,3292.2,0.06073918]
[1720010741149,0.58337566,3292.7,3292.1,0.32707392]
[1720010741349,0.52624436,3292.6,3292.1,0.32707392]
[1720010741563,0.7084551,3292.5,3291.4,3.2668]
[1720010741743,2.559,3292.5,3291.4,3.2668]
[1720010741911,0.76572064,3292.4,3291.5,0.32668]
[1720010742118,0.52631257,3292.3,3291.6,3.32754811]
[1720010742345,0.05711408,3292.4,3291.6,6.36552811]
[1720010742513,0.05710589,3292.2,3291.7,3.205]
[1720010742715,3.0,3293.2,3291.8,0.06074059]
[1720010743047,0.76548042,3293.1,3291.9,3.53157406]
[1720010743227,0.70837453,3293.0,3292.0,0.0607396]
[1720010743555,0.70837453,3292.9,3292.1,3.1936]
[1720010743759,0.70837453,3292.8,3292.2,0.06073961]
[1720010743913,0.52624356,3292.7,3292.2,0.06073961]
[1720010744114,3.0,3293.2,3292.3,0.38617351]
[1720010744314,2.559,3293.5,3292.3,0.38617351]
[1720010744315,0.05710589,3292.6,3292.3,0.38617351]
[1720010744639,3.0,3293.4,3292.3,0.38617351]
[1720010744840,0.05710589,3292.5,3292.3,0.06073955]
[1720010745152,3.0,3293.4,3292.3,0.06073955]
[1720010745362,2.559,3293.1,3292.3,0.06073955]
[1720010745535,3.70830134,3293.0,3292.1,6.3986]
[1720010745720,0.70830134,3292.9,3292.2,0.70059639]
[1720010745928,0.05710589,3292.9,3292.2,3.84486]
[1720010746124,0.05710589,3292.9,3292.3,3.755]
[1720010746348,3.0,3293.6,3292.3,3.755]
[1720010746546,0.70818655,3293.5,3292.3,3.755]
[1720010746860,0.70818655,3293.4,3292.4,0.439486]
[1720010747025,0.70818655,3293.3,3292.4,0.439486]
[1720010747224,0.70818655,3293.2,3292.4,0.439486]
[1720010747458,3.0,3293.6,3292.4,0.439486]
[1720010747620,0.58327526,3293.1,3292.3,3.205]
[1720010747953,0.7081761,3293.0,3292.5,3.205]
[1720010748230,3.0,3293.8,3292.6,0.06073094]
[1720010748542,0.05722064,3292.9,3292.6,0.06073094]
[1720010748854,3.0,3293.8,3292.7,0.32657309]
[1720010749172,1.14672007,3293.7,3292.8,0.06072852]
[1720010749354,0.62060493,3293.6,3292.8,0.06072852]
[1720010749553,0.52611514,3293.5,3292.8,0.06072852]
[1720010749718,3.0,3293.8,3292.8,0.06072852]
[1720010749921,1.14668991,3293.7,3292.8,0.06072852]
[1720010750125,1.14668991,3293.6,3292.8,0.06072852]
[1720010750351,1.14668991,3293.5,3292.8,0.06072852]
[1720010750682,3.17969503,3293.4,3292.4,3.1643]
[1720010750956,3.62069503,3293.3,3292.4,3.1643]
[1720010751258,1.14688654,3293.2,3292.4,3.48073]
[1720010751458,1.14688654,3293.1,3292.4,3.48073]
[1720010751639,1.14688654,3293.0,3292.4,3.48073]
[1720010751839,3.0,3293.3,3292.4,3.48073]
[1720010752036,1.14695158,3293.2,3292.4,3.48073]
[1720010752365,3.0,3293.7,3292.4,3.48073]
[1720010752366,1.14695158,3293.1,3292.4,3.48073]
[1720010752551,3.0,3293.8,3292.5,0.348073]
[1720010752770,2.99435517,3293.7,3292.4,3.1643]
[1720010752972,5.99435517,3293.6,3292.4,3.1643]
[1720010753147,2.99435517,3293.5,3292.4,3.1643]
[1720010753456,5.99427635,3293.4,3291.9,3.49437406]
[1720010753655,5.55327635,3293.3,3291.9,3.51723741]
[1720010753858,5.99434963,3293.2,3291.9,3.51723741]
[1720010754067,1.14703166,3293.1,3291.9,3.51723741]
[1720010754279,3.0,3293.2,3291.9,3.51723741]
[1720010754453,0.52625453,3293.0,3291.9,3.51723741]
[1720010754800,1.14704562,3292.9,3292.0,0.35172374]
[1720010755080,1.14704562,3292.8,3292.0,0.35172374]
[1720010755273,3.0,3293.4,3292.0,0.35172374]
[1720010755274,1.14704562,3292.7,3292.0,0.35172374]
[1720010755470,3.0,3293.4,3291.9,3.1678]
[1720010755672,0.05754433,3292.6,3291.9,3.1678]
[1720010755886,3.0,3293.2,3291.9,3.1678]
[1720010756065,0.05754433,3292.5,3291.9,3.1678]
[1720010756258,3.0,3293.3,3291.9,3.1678]
[1720010756475,0.05754433,3292.4,3291.9,3.48458]
[1720010756674,3.0,3293.1,3291.9,3.48458]
[1720010756987,0.05754433,3292.3,3291.9,3.48458]
[1720010757302,3.9094,3293.2,3291.9,3.48458]
[1720010757594,0.05754433,3292.2,3291.4,3.1633]
[1720010757889,3.9094,3293.0,3291.4,3.1633]
[1720010758067,0.05754433,3292.1,3291.4,3.1633]
[1720010758257,3.0,3292.8,3291.5,0.63683]
[1720010758456,0.05754433,3292.0,3291.5,0.63683]
[1720010758882,3.0,3292.7,3291.4,3.1633]
[1720010759090,0.05754433,3291.9,3291.4,3.1633]
[1720010759396,3.9094,3292.8,3291.4,3.1633]
[1720010759582,4.14694807,3292.7,3291.5,0.06075155]
[1720010759781,1.14694807,3292.6,3291.6,4.39790516]
[1720010760090,0.6206309,3292.5,3291.7,0.06074546]
[1720010760276,0.52631538,3292.4,3291.7,0.06074546]
[1720010760482,3.0,3293.0,3291.7,0.06074546]
[1720010760664,0.05754433,3292.3,3291.7,0.06074546]
[1720010760869,3.0,3293.0,3291.7,0.06074546]
[1720010761074,0.05721239,3292.2,3291.8,0.06074841]
[1720010761261,3.0,3293.0,3291.9,3.1863]
[1720010761477,1.14660252,3292.9,3292.0,0.06074038]
[1720010761653,1.14660252,3292.8,3292.0,3.205]
[1720010761860,0.52625088,3292.7,3292.0,3.205]
[1720010762054,0.52625088,3292.6,3292.1,0.06073813]
[1720010762255,6.2199,3293.5,3292.2,0.32657381]
[1720010762584,0.60025058,3296.3,3292.4,5.764]
[1720010762585,0.05721239,3292.5,3292.4,5.764]